bitfinex-derivatives/quotes_SOLF0:USTF0_20241105
["timestamp","ask_amount","ask_price","bid_price","bid_amount"]
[1730823139821,3.0017,166.6,166.54,9.4945]
[1730823140117,3.0017,166.6,166.54,6.492]
[1730823140719,17.48778503,166.64,166.54,2.652]
[1730823141027,14.41634254,166.61,166.54,2.652]
[1730823141618,3.0019,166.59,166.54,5.6546]
[1730823142820,3.0019,166.59,166.54,2.652]
[1730823143129,3.0019,166.59,166.55,3.0025]
[1730823143314,3.0019,166.59,166.55,4.2873]
[1730823143919,3.0016,166.6,166.55,4.2873]
[1730823146224,1.0,166.66,166.58,14.41634254]
[1730823146926,4.0007,166.66,166.6,3.0016]
[1730823147233,1.0,166.66,166.6,14.41634254]
[1730823148033,1.0,166.66,166.61,2.6902]
[1730823148329,4.0005,166.66,166.61,2.6902]
[1730823149930,14.41634254,166.71,166.62,14.41634254]
[1730823149931,10.53706823,166.71,166.62,14.41634254]
[1730823150131,10.53706823,166.71,166.64,14.41634254]
[1730823150623,2.6867,166.79,166.69,14.41634254]
[1730823150821,4.87129026,166.78,166.69,14.41634254]
[1730823151021,4.87128764,166.78,166.7,1.326]
[1730823151222,2.9989,166.75,166.7,4.3256]
[1730823151426,2.9989,166.75,166.7,1.326]
[1730823151627,2.98781693,166.78,166.7,1.326]
[1730823152037,14.37290409,166.79,166.7,1.326]
[1730823152326,13.53130409,166.79,166.72,2.9994]
[1730823153831,2.9985,166.78,166.72,2.9994]
[1730823154028,3.06733601,166.81,166.72,2.9994]
[1730823154432,3.06733601,166.81,166.71,15.73934254]
[1730823154737,3.06733601,166.81,166.73,2.9992]
[1730823155035,2.9982,166.79,166.71,15.73934254]
[1730823155234,18.25634254,166.82,166.74,2.9991]
[1730823155425,18.25634254,166.82,166.71,15.73934254]
[1730823155736,18.25634254,166.82,166.74,2.999]
[1730823156034,18.25634254,166.82,166.71,15.73934254]
[1730823156231,2.9982,166.79,166.71,15.73934254]
[1730823157330,2.9985,166.78,166.71,15.73934254]
[1730823157733,18.25634254,166.82,166.71,15.73934254]
[1730823158436,14.41634254,166.84,166.73,14.41634254]
[1730823158634,2.9976,166.83,166.76,2.9986]
[1730823158937,2.9976,166.83,166.75,14.41634254]
[1730823159237,3.84,166.85,166.76,1.2656]
[1730823159438,2.9973,166.84,166.78,2.9983]
[1730823159740,3.84,166.85,166.77,15.70814254]
[1730823160038,14.41634254,166.87,166.77,15.70814254]
[1730823160240,2.9972,166.85,166.79,2.9982]
[1730823161241,2.9972,166.85,166.8,2.998]
[1730823161437,14.41634254,166.88,166.8,2.998]
[1730823161633,2.997,166.86,166.8,2.998]
[1730823162234,2.9967,166.88,166.82,2.9976]
[1730823162642,2.9967,166.87,166.82,2.9976]
[1730823162938,14.41634254,166.88,166.81,1.3244]
[1730823164236,14.41634254,166.84,166.77,1.2918]
[1730823164446,2.998,166.81,166.77,1.2918]
[1730823165039,14.41634254,166.84,166.77,1.2918]
[1730823165238,2.9977,166.82,166.77,1.2918]
[1730823165434,14.41634254,166.84,166.77,1.2918]
[1730823165645,3.84,166.85,166.77,1.2918]
[1730823165849,2.9975,166.83,166.77,4.2902]
[1730823167740,2.95568155,166.84,166.77,1.2918]
[1730823167941,2.998,166.81,166.77,1.2918]
[1730823168247,14.41634254,166.8,166.72,3.84]
[1730823168444,2.9989,166.76,166.72,3.84]
[1730823168638,14.41634254,166.8,166.72,3.84]
[1730823169038,2.9985,166.78,166.72,6.8394]
[1730823169241,1.2704,166.83,166.72,3.84]
[1730823169242,14.41634254,166.82,166.72,3.84]
[1730823169433,15.41634254,166.82,166.73,1.3054]
[1730823170050,2.9982,166.79,166.73,4.3045]
[1730823171246,2.9982,166.79,166.73,4.3046]
[1730823171441,2.9983,166.79,166.73,4.3046]
[1730823172551,2.9987,166.77,166.73,1.3054]
[1730823173451,15.41634254,166.82,166.73,1.3054]
[1730823173655,2.9987,166.77,166.73,1.3054]
[1730823175955,2.9991,166.75,166.72,3.84]
[1730823176343,14.41634254,166.79,166.72,3.84]
[1730823176658,14.41634254,166.79,166.69,17.02504254]
[1730823177157,2.9987,166.76,166.71,2.9996]
[1730823178859,14.41634254,166.79,166.71,2.9996]
[1730823179257,14.41634254,166.79,166.69,20.86504254]
[1730823179557,2.9987,166.77,166.72,2.9993]
[1730823180162,14.41634254,166.81,166.71,14.41634254]
[1730823180363,18.23634254,166.81,166.7,1.3351]
[1730823180657,14.41634254,166.79,166.7,1.3351]
[1730823181165,1.0,166.8,166.7,1.3351]
[1730823181461,1.0,166.8,166.73,2.9992]
[1730823181654,1.0,166.8,166.71,14.41634254]
[1730823182566,14.41634254,166.79,166.7,1.3351]
[1730823182863,14.41634254,166.79,166.69,20.84504254]
[1730823182864,14.41634254,166.79,166.69,2.6087]
[1730823183064,14.41634254,166.79,166.67,14.41634254]
[1730823183065,14.41634254,166.77,166.67,18.23634254]
[1730823183860,1.0,166.78,166.69,14.41634254]
[1730823184057,14.41634254,166.85,166.75,14.41634254]
[1730823184258,2.95512272,166.84,166.75,14.41634254]
[1730823184759,2.9978,166.82,166.76,2.9987]
[1730823185564,2.9976,166.83,166.77,2.9984]
[1730823185764,2.95512272,166.84,166.75,14.41634254]
[1730823186265,2.9978,166.82,166.76,2.9987]
[1730823186566,2.95512272,166.84,166.76,2.9987]
[1730823186768,2.9978,166.81,166.76,2.9987]
[1730823188169,2.95512272,166.84,166.75,14.41634254]
[1730823188170,6.77512272,166.84,166.75,14.41634254]
[1730823188361,6.77512272,166.84,166.73,14.41634254]
[1730823188362,14.41634254,166.82,166.73,14.41634254]
[1730823188566,14.41634254,166.8,166.7,1.3002]
[1730823188865,2.9991,166.74,166.69,6.82]
[1730823190268,14.41634254,166.78,166.69,3.82]
[1730823190466,2.9992,166.74,166.69,3.82]
[1730823190662,62.24534429,166.85,166.72,14.41634254]
[1730823190864,1.0,166.77,166.73,2.9992]
[1730823191166,2.998,166.8,166.72,14.41634254]
[1730823191569,2.998,166.8,166.75,2.9988]
[1730823191869,2.9766,166.84,166.75,2.9988]
[1730823192058,2.9979,166.81,166.75,2.9988]
[1730823192364,6.7966,166.84,166.76,2.9987]
[1730823192566,2.9978,166.82,166.76,2.9987]
[1730823192757,6.7966,166.84,166.74,14.41634254]
[1730823192962,6.7966,166.84,166.74,17.41544254]
[1730823193161,2.9981,166.8,166.74,17.41544254]
[1730823196670,2.9981,166.8,166.75,2.9989]
[1730823198565,2.9979,166.81,166.76,2.9986]
[1730823200463,18.29104254,166.87,166.76,14.41634254]
[1730823200669,2.9973,166.85,166.8,2.9979]
[1730823200875,8.30011969,166.89,166.81,14.41634254]
[1730823201075,2.9965,166.89,166.83,2.9973]
[1730823201579,2.9962,166.9,166.84,2.9973]
[1730823201876,15.13151645,166.92,166.83,14.41634254]
[1730823202070,2.9965,166.89,166.83,17.41364254]
[1730823202468,2.9965,166.89,166.83,14.41634254]
[1730823202874,2.9964,166.9,166.85,2.9971]
[1730823203480,12.12011969,166.92,166.85,2.9971]
[1730823204079,2.9962,166.91,166.85,2.9971]
[1730823204375,12.12011969,166.92,166.85,2.9971]
[1730823204578,2.9965,166.89,166.83,14.41634254]
[1730823204777,29.58100065,166.92,166.83,14.41634254]
[1730823204972,21.28088096,166.92,166.83,14.41634254]
[1730823205175,2.9968,166.87,166.83,14.41634254]
[1730823206282,14.41634254,166.89,166.8,1.2946]
[1730823206679,14.41634254,166.91,166.82,14.41634254]
[1730823207282,2.9967,166.88,166.83,2.9974]
[1730823207474,3.82,166.92,166.82,14.41634254]
[1730823207674,3.82,166.92,166.83,2.7221]
[1730823207973,2.9962,166.9,166.85,2.997]
[1730823210685,2.9958,166.93,166.85,14.41634254]
[1730823210882,3.82,166.94,166.85,14.41634254]
[1730823212293,2.9959,166.92,166.87,2.9967]
[1730823212790,14.41634254,166.96,166.85,14.41634254]
[1730823212986,2.9958,166.93,166.88,2.9965]
[1730823213389,2.9958,166.93,166.87,2.9967]
[1730823214693,14.41634254,166.96,166.85,14.41634254]
[1730823214993,4.38112024,167.01,166.89,14.41634254]
[1730823214994,14.41634254,166.98,166.89,14.41634254]
[1730823215198,14.41634254,167.0,166.9,2.5846]
[1730823215399,1.0298787,166.99,166.9,2.5846]
[1730823215600,2.9953,166.96,166.9,5.5807]
[1730823215792,14.41634254,167.0,166.9,5.5807]
[1730823215993,4.08963938,166.99,166.9,5.5807]
[1730823216194,14.41634254,167.0,166.9,2.5846]
[1730823216490,1.02987762,166.99,166.91,14.41634254]
[1730823216696,1.02987762,166.99,166.9,3.9002]
[1730823216901,2.9949,166.97,166.91,2.996]
[1730823218093,2.9949,166.98,166.91,2.996]
[1730823218294,14.41634254,167.0,166.91,2.996]
[1730823218693,2.9951,166.96,166.91,2.996]
[1730823218895,14.41634254,167.0,166.9,3.9002]
[1730823219196,14.41634254,166.98,166.9,3.9002]
[1730823220301,2.9955,166.94,166.9,3.9002]
[1730823222302,2.9954,166.95,166.9,3.9002]
[1730823223302,2.9954,166.95,166.9,6.8963]
[1730823225206,18.21634254,166.96,166.85,14.41634254]
[1730823225504,18.21634254,166.96,166.86,2.9969]
[1730823225894,18.21634254,166.96,166.85,14.41634254]
[1730823226099,14.41634254,166.94,166.84,3.8]
[1730823226594,3.05045719,166.93,166.84,3.8]
[1730823226797,14.41634254,166.91,166.83,14.41634254]
[1730823228506,2.9966,166.88,166.83,17.41374254]
[1730823231096,14.41634254,166.91,166.83,17.41374254]
[1730823231302,14.41634254,166.93,166.83,14.41634254]
[1730823231905,3.8,166.96,166.87,14.41634254]
[1730823232102,3.8,166.96,166.88,1.2607]
[1730823232504,3.8,166.96,166.88,2.5411]
[1730823233205,2.9955,166.95,166.9,2.9962]
[1730823233808,3.8,166.96,166.91,2.9959]
[1730823234506,2.9948,166.98,166.92,2.9957]
[1730823234702,2.9948,166.98,166.92,14.41634254]
[1730823235703,3.8,167.0,166.92,14.41634254]
[1730823235904,14.41634254,167.03,166.92,14.41634254]
[1730823236099,3.8,167.02,166.92,14.41634254]
[1730823237214,2.9945,167.0,166.94,2.9954]
[1730823237408,3.8,167.02,166.92,14.41634254]
[1730823238105,2.9946,167.0,166.94,2.9954]
[1730823238507,2.9946,167.0,166.95,2.9953]
[1730823238805,2.9946,167.0,166.92,14.41634254]
[1730823239012,3.8,167.02,166.94,14.41634254]
[1730823239207,2.9946,166.99,166.94,17.41174254]
[1730823239711,14.41634254,167.03,166.94,17.41174254]
[1730823239913,2.9946,167.0,166.94,17.41174254]
[1730823240113,2.9946,167.0,166.94,14.41634254]
[1730823240811,2.9946,167.0,166.94,17.41184254]
[1730823246313,14.41634254,167.03,166.94,14.41634254]
[1730823246611,185.58365746,166.94,166.92,14.41634254]
[1730823247617,185.58365746,166.94,166.89,18.21634254]
[1730823248317,185.58365746,166.94,166.91,2.996]
[1730823248621,185.58365746,166.94,166.88,2.5411]
[1730823249522,2.9957,166.93,166.9,9.21273063]
[1730823252224,2.9957,166.93,166.88,2.9964]
[1730823254925,2.9954,166.95,166.89,17.38976114]
[1730823255121,3.8,166.99,166.89,17.38976114]
[1730823255722,2.9955,166.94,166.89,17.38976114]
[1730823255923,2.9955,166.94,166.89,14.39356114]
[1730823256424,6.76967154,166.94,166.76,34.66317183]
[1730823256620,14.39356114,166.91,166.81,2.9977]
[1730823256817,14.39356114,166.91,166.8,14.39356114]
[1730823257018,14.39356114,166.89,166.79,2.6511]
[1730823257314,14.39356114,166.91,166.8,2.9979]
[1730823257722,14.39356114,166.91,166.79,5.6493]
[1730823258026,2.9974,166.84,166.79,2.6511]
[1730823258623,2.9971,166.85,166.79,2.6511]
[1730823258827,3.8,166.88,166.8,2.998]
[1730823260329,2.9971,166.85,166.8,2.998]
[1730823261319,2.9971,166.85,166.79,2.6511]
[1730823261529,2.9971,166.85,166.79,5.6492]
[1730823261930,14.39356114,166.87,166.79,2.6511]
[1730823262228,14.39356114,166.85,166.76,34.66317183]
[1730823262527,2.998,166.81,166.75,2.9988]
[1730823263129,2.998,166.81,166.76,2.9987]
[1730823263731,17.43894687,166.85,166.74,18.19356114]
[1730823263935,2.9984,166.78,166.74,3.8]
[1730823264931,2.9985,166.77,166.73,2.9991]
[1730823265124,14.39356114,166.82,166.73,2.9991]
[1730823265523,2.9984,166.78,166.73,2.9991]
[1730823266726,2.9986,166.77,166.73,2.9991]
[1730823266926,2.9986,166.77,166.72,14.39356114]
[1730823266927,14.39356114,166.8,166.72,2.9994]
[1730823267223,14.39356114,166.8,166.7,17.07966114]
[1730823267624,14.39356114,166.78,166.7,2.6861]
[1730823268130,18.19356114,166.78,166.67,19.55956114]
[1730823268336,2.9996,166.72,166.67,4.3663]
[1730823268635,14.39356114,166.76,166.65,52.8712729]
[1730823268933,1.0,166.77,166.64,3.0008]
[1730823268934,14.39356114,166.73,166.64,3.0008]
[1730823269127,21.23785821,166.73,166.64,3.0008]
[1730823269324,2.9999,166.7,166.64,3.0008]
[1730823270629,21.23785821,166.73,166.7,0.05978823]
[1730823271431,3.0002,166.68,166.67,0.4243916]
[1730823272231,3.0003,166.67,166.66,0.54944555]
[1730823276339,6.7802,166.68,166.66,0.54944555]
[1730823276538,14.39356114,166.71,166.66,0.54944555]
[1730823276840,3.0003,166.67,166.66,0.54944555]
[1730823277339,18.17356114,166.71,166.66,0.54944555]
[1730823277540,3.0001,166.69,166.66,0.54944555]
[1730823277930,18.17356114,166.71,166.66,0.54944555]
[1730823278141,1.0,166.72,166.66,0.54944555]
[1730823279343,2.9996,166.71,166.66,0.54944555]
[1730823280441,1.0,166.72,166.66,0.54944555]
[1730823280842,1.0,166.72,166.68,3.0001]
[1730823281338,1.0,166.72,166.66,1.90584555]
[1730823281541,1.0,166.72,166.67,3.0003]
[1730823282934,1.0,166.72,166.66,1.90584555]
[1730823283140,2.9996,166.71,166.66,0.54944555]
[1730823283342,1.0,166.72,166.66,0.54944555]
[1730823283543,1.0,166.72,166.67,3.0003]
[1730823283748,1.0,166.72,166.66,0.54944555]
[1730823284041,1.0,166.72,166.68,3.0]
[1730823284644,1.0,166.72,166.67,14.39356114]
[1730823284845,14.39356114,166.8,166.69,14.39356114]
[1730823285053,14.39356114,166.8,166.7,1.3259]
[1730823285646,2.9985,166.78,166.73,2.9991]
[1730823285851,2.9985,166.78,166.71,1.2963]
[1730823286439,53.9421591,166.86,166.71,15.68986114]
[1730823286641,14.39356114,166.87,166.76,14.39356114]
[1730823287047,2.9974,166.84,166.77,2.9985]
[1730823287252,17.33710798,166.85,166.77,2.9985]
[1730823288251,2.9975,166.83,166.77,2.9985]
[1730823288450,17.33710798,166.85,166.77,2.9985]
[1730823288750,17.33710798,166.85,166.78,2.9984]
[1730823288952,2.9973,166.84,166.78,2.9984]
[1730823290651,20.1788,166.91,166.78,2.9984]
[1730823290652,2.96967154,166.94,166.78,14.39356114]
[1730823290851,14.39356114,166.9,166.79,1.3175]
[1730823291054,2.94278774,166.89,166.79,1.3175]
[1730823291451,2.9969,166.87,166.81,2.9978]
[1730823291656,14.39356114,166.84,166.78,200.0]
[1730823292053,2.9975,166.83,166.78,200.0]
[1730823292255,14.39356114,166.84,166.78,200.0]
[1730823294052,2.9975,166.83,166.78,202.9983]
[1730823294259,2.9975,166.83,166.78,200.0]
[1730823294758,14.39356114,166.84,166.78,200.0]
[1730823295147,14.39356114,166.82,166.78,200.0]
[1730823295348,2.998,166.81,166.78,200.0]
[1730823295553,14.39356114,166.82,166.78,200.0]
[1730823295752,6.72763906,166.81,166.78,200.0]
[1730823295957,2.9982,166.79,166.78,200.0]
[1730823300361,1.0,166.81,166.78,200.0]
[1730823300865,2.9982,166.8,166.78,200.0]
[1730823301059,1.0,166.81,166.78,200.0]
[1730823301456,2.9982,166.79,166.78,200.0]
[1730823301660,2.9982,166.79,166.78,197.0681]
[1730823302362,6.778,166.8,166.78,197.0681]
[1730823302564,1.0,166.81,166.78,197.0681]
[1730823302960,1.0,166.81,166.78,200.0665]
[1730823303968,1.0,166.81,166.78,197.0681]
[1730823306467,2.998,166.8,166.78,197.0681]
[1730823307265,2.9982,166.79,166.78,197.0681]
[1730823311374,2.9982,166.79,166.78,112.25171622]
[1730823313676,2.9982,166.79,166.78,82.8491175]
[1730823313975,1.0028,166.79,166.68,1.2762]
[1730823314278,2.9994,166.73,166.68,1.2762]
[1730823314470,1.0028,166.79,166.68,1.2762]
[1730823314471,3.78,166.75,166.68,1.2762]
[1730823315077,2.9998,166.7,166.67,1.3854]
[1730823315269,14.39356114,166.7,166.66,0.54944555]
[1730823315473,18.17356114,166.7,166.66,0.54944555]
[1730823315672,3.0003,166.67,166.66,0.54944555]
[1730823316572,1.0,166.69,166.66,0.54944555]
[1730823317072,14.39356114,166.68,166.66,0.54944555]
[1730823317874,3.0003,166.67,166.66,0.54944555]
[1730823318371,4.0003,166.67,166.66,0.54944555]
[1730823324190,1.0,166.67,166.66,0.54944555]
[1730823324486,21.04346274,166.75,166.66,0.54944555]
[1730823324487,3.78,166.73,166.66,0.54944555]
[1730823324682,2.9995,166.72,166.66,0.54944555]
[1730823324881,3.78,166.73,166.66,0.54944555]
[1730823325381,57.75503819,166.76,166.67,14.39356114]
[1730823325789,60.75383819,166.76,166.67,14.39356114]
[1730823325986,57.75503819,166.76,166.67,14.39356114]
[1730823326284,14.39356114,166.8,166.7,14.39356114]
[1730823326490,2.9984,166.78,166.71,1.3193]
[1730823327284,2.9984,166.78,166.71,4.3188]
[1730823327895,3.78,166.8,166.71,4.3188]
[1730823328180,2.9986,166.77,166.71,4.3188]
[1730823330491,2.9986,166.77,166.71,1.3193]
[1730823331091,2.9984,166.78,166.71,4.3189]
[1730823331282,3.78,166.8,166.71,4.3189]
[1730823331683,2.9988,166.76,166.71,1.3193]
[1730823331883,3.78,166.8,166.71,1.3193]
[1730823333087,6.7781,166.8,166.74,2.999]
[1730823333392,3.78,166.8,166.75,1.2974]
[1730823334490,2.9983,166.79,166.71,1.3193]
[1730823334690,26.82625703,166.8,166.71,1.3193]
[1730823335682,2.9988,166.76,166.71,1.3193]
[1730823336486,3.78,166.8,166.71,1.3193]
[1730823336897,2.9983,166.79,166.72,2.9994]
[1730823338794,2.9984,166.78,166.72,2.9994]
[1730823338991,33.08932301,166.94,166.71,5.9992]
[1730823339189,2.0071,166.93,166.79,23.04625703]
[1730823339390,3.76,166.92,166.79,23.04625703]
[1730823339586,2.9961,166.91,166.83,2.9973]
[1730823339794,43.2,167.11,166.74,3.03245099]
[1730823339795,3.76,166.92,166.82,23.04625703]
[1730823340088,3.76,166.92,166.85,2.9971]
[1730823340292,3.76,166.92,166.82,23.04625703]
[1730823340692,3.76,166.92,166.85,2.9971]
[1730823340894,3.76,166.92,166.82,23.04625703]
[1730823341704,2.9959,166.92,166.82,23.04625703]
[1730823341887,3.76,166.91,166.82,23.04625703]
[1730823342189,3.76,166.91,166.84,2.9973]
[1730823343296,6.7562,166.91,166.84,2.9973]
[1730823344600,2.9963,166.9,166.84,2.9971]
[1730823344785,3.76,166.91,166.8,4.0283]
[1730823345194,3.76,166.91,166.85,2.9971]
[1730823345195,2.9962,166.9,166.85,2.9971]
[1730823345386,3.76,166.91,166.8,4.0283]
[1730823345810,2.9966,166.88,166.82,2.9975]
[1730823345985,3.76,166.91,166.8,4.0283]
[1730823346198,23.04625703,166.9,166.8,4.0283]
[1730823346394,23.04625703,166.9,166.8,7.0263]
[1730823347092,2.9967,166.87,166.81,2.9978]
[1730823347295,3.76,166.86,166.81,2.9978]
[1730823348096,2.9967,166.87,166.81,2.9978]
[1730823348297,2.9965,166.89,166.83,2.9974]
[1730823348496,3.76,166.88,166.83,2.9974]
[1730823348896,2.9967,166.87,166.81,2.9977]
[1730823349295,14.39435276,166.86,166.8,1.2864]
[1730823349490,5.93443794,166.85,166.79,2.9981]
[1730823349692,5.93443794,166.85,166.76,1.361]
[1730823349693,14.39435276,166.84,166.76,1.361]
[1730823349893,2.9977,166.82,166.76,2.9986]
[1730823350093,14.39435276,166.79,166.72,2.6849]
[1730823350291,3.76,166.78,166.68,14.39435276]
[1730823350499,3.76,166.78,166.67,5.1103]
[1730823350500,14.39435276,166.75,166.67,2.6849]
[1730823350900,2.9993,166.73,166.67,2.6849]
[1730823351101,3.76,166.72,166.67,1.3239]
[1730823351306,3.76,166.72,166.66,0.54944555]
[1730823351900,6.79779625,166.72,166.66,0.54944555]
[1730823352596,23.04215136,166.8,166.66,23.59159691]
[1730823352798,3.76,166.77,166.69,23.04215136]
[1730823353206,3.76,166.77,166.7,1.3819]
[1730823353403,3.76,166.77,166.73,2.9993]
[1730823353701,3.76,166.77,166.71,1.3639]
[1730823354004,3.76,166.79,166.74,2.999]
[1730823354305,2.7041,166.83,166.72,1.2825]
[1730823354503,2.7041,166.83,166.77,2.9985]
[1730823354504,3.76,166.82,166.77,2.9985]
[1730823354908,3.76,166.82,166.74,23.04215136]
[1730823355203,6.7578,166.82,166.75,2.9987]
[1730823356610,2.998,166.8,166.74,2.9989]
[1730823356906,3.76,166.82,166.72,1.2825]
[1730823357404,2.9982,166.79,166.72,4.2818]
[1730823357603,3.76,166.82,166.72,1.2825]
[1730823357998,3.76,166.82,166.74,2.999]
[1730823358400,2.998,166.8,166.72,1.2825]
[1730823358607,2.998,166.8,166.73,2.9992]
[1730823359107,2.998,166.8,166.72,1.2825]
[1730823359108,3.76,166.82,166.72,24.32465136]
[1730823359403,8.27748125,166.96,166.78,23.04215136]
[1730823359606,3.76,166.89,166.82,2.9976]
[1730823359806,3.76,166.89,166.79,1.3225]
[1730823360009,2.9967,166.88,166.79,1.3225]
[1730823360207,3.76,166.89,166.79,4.3206]
[1730823360407,3.76,166.89,166.79,1.3225]
[1730823360609,2.9968,166.87,166.79,1.3225]
[1730823360806,3.76,166.89,166.79,1.3225]
[1730823361401,23.04215136,166.88,166.75,23.04215136]
[1730823361601,23.04215136,166.88,166.73,5.1098]
[1730823362721,23.04215136,166.88,166.77,2.9985]
[1730823362722,2.9973,166.84,166.77,2.9985]
[1730823363116,2.9964,166.89,166.83,2.9974]
[1730823363414,2.7041,166.9,166.78,23.04215136]
[1730823363716,2.9964,166.9,166.81,23.04215136]
[1730823364123,23.04215136,167.1,166.79,2.7212]
[1730823364124,5.9476058,166.98,166.91,2.996]
[1730823364310,8.27748125,167.02,166.91,2.996]
[1730823364513,1.02983372,167.01,166.91,2.996]
[1730823364922,2.9948,166.99,166.91,2.996]
[1730823366018,2.9948,166.99,166.92,2.9958]
[1730823366216,23.04215136,167.04,166.9,26.80215136]
[1730823366418,1.02977383,167.03,166.92,23.04215136]
[1730823366725,2.9946,167.0,166.92,3.76]
[1730823367219,2.9943,167.01,166.93,2.9956]
[1730823367417,2.9943,167.01,166.92,3.76]
[1730823367718,2.9942,167.02,166.94,2.9955]
[1730823367923,26.0197431,167.04,166.92,26.80215136]
[1730823368520,5.97139174,167.04,166.92,26.80215136]
[1730823368722,2.97759174,167.04,166.92,26.80215136]
[1730823369323,2.9939,167.03,166.96,2.9951]
[1730823369714,2.97759174,167.04,166.92,23.04215136]
[1730823369918,2.9941,167.02,166.95,2.9953]
[1730823370117,6.4082,167.05,166.93,3.76]
[1730823370118,9.40430673,167.05,166.93,3.76]
[1730823370318,8.63790673,167.05,166.97,2.9949]
[1730823370627,28.68645809,167.05,166.91,1.2554]
[1730823371121,2.9947,166.99,166.91,8.0114]
[1730823371523,3.76,167.01,166.93,2.9956]
[1730823371524,2.9944,167.0,166.93,2.9956]
[1730823371723,5.64430673,167.05,166.95,23.04215136]
[1730823371724,2.6482,167.05,166.95,23.04215136]
[1730823371924,2.6482,167.05,167.0,2.9944]
[1730823372118,1.3059,167.05,166.98,23.04215136]
[1730823372531,1.3059,167.05,166.95,26.03735136]
[1730823372532,2.9939,167.03,166.95,26.03735136]
[1730823372719,1.3059,167.05,166.95,2.9952]
[1730823373425,1.3059,167.05,166.94,5.1032]
[1730823373820,27.33601258,167.05,166.94,3.76]
[1730823374029,24.34805136,167.05,166.93,3.76]
[1730823374628,2.95951015,167.04,166.93,3.76]
[1730823374827,2.95951015,167.04,166.93,26.80215136]
[1730823375621,24.34805136,167.05,166.93,26.80215136]
[1730823375929,1.3059,167.05,166.95,23.04215136]
[1730823377128,1.3059,167.05,166.98,2.9946]
[1730823377332,1.2831,167.06,166.95,23.04215136]
[1730823377732,4.2764,167.06,166.99,2.9945]
[1730823377927,1.2831,167.06,166.98,3.76]
[1730823378137,2.9936,167.05,166.98,6.7547]
[1730823378431,1.2831,167.06,166.98,3.76]
[1730823378630,2.994,167.03,166.98,3.76]
[1730823378835,1.2831,167.06,166.98,3.76]
[1730823379738,2.9937,167.04,166.98,3.76]
[1730823379938,1.2831,167.06,166.98,3.76]
[1730823380134,1.2831,167.06,167.0,2.9944]
[1730823380338,1.2831,167.06,166.98,3.76]
[1730823380738,2.9934,167.06,167.0,2.9944]
[1730823380940,2.5676,167.09,167.0,23.04215136]
[1730823381140,2.5676,167.09,166.99,1.2622]
[1730823381436,1.2948,167.09,166.99,24.30435136]
[1730823381638,1.2948,167.09,167.0,1.2841]
[1730823382242,1.2948,167.09,166.99,1.2622]
[1730823382537,2.9933,167.06,166.99,4.2567]
[1730823383135,1.2948,167.09,166.99,1.2622]
[1730823383331,2.9934,167.06,166.99,4.2566]
[1730823383541,1.2948,167.09,166.99,24.30435136]
[1730823383740,1.2948,167.09,167.01,2.9941]
[1730823383741,2.9931,167.08,167.01,2.9941]
[1730823383928,1.2948,167.09,167.01,2.9941]
[1730823384133,1.2948,167.09,166.99,24.30435136]
[1730823384333,2.9932,167.07,167.0,2.9944]
[1730823385237,2.993,167.08,167.02,2.9941]
[1730823385639,1.2948,167.09,166.99,24.30435136]
[1730823385834,2.9937,167.05,166.99,1.2622]
[1730823386039,1.2948,167.09,166.99,1.2622]
[1730823386743,1.2948,167.09,166.99,24.30435136]
[1730823387336,2.9934,167.06,166.99,27.29885136]
[1730823387849,2.9935,167.06,166.99,27.29885136]
[1730823388842,2.9936,167.05,166.99,4.2567]
[1730823389349,2.9939,167.03,166.97,23.04215136]
[1730823389644,3.74,167.05,166.95,1.3114]
[1730823389844,6.72939948,167.05,166.95,1.3114]
[1730823390041,2.9941,167.02,166.95,4.3066]
[1730823390237,6.72939948,167.05,166.95,1.3114]